Cogmind - Beta 12 --- EXPLORER MODE // 2023.03.19 @ 10:49:51 // Winter2019/RPGLIKE Player: Storm Mk9 Result: Self-destructed Performance ------------- Evolutions (1) 500 Regions Visited (3) 600 Robots Destroyed (17) 85 Value Destroyed (400) 400 Prototype IDs (0) 0 Alien Tech Used (0) 0 Bonus (0) 0 TOTAL SCORE: 1585 Bonus ------- None Cogmind --------- Core Integrity 600/600 Matter 266/300 Energy 325/325 System Corruption 0% Temperature Cool (0) Movement Walking (190) Ox1 Location -9/Materials Parts ------- > --- POWER (2) -------- Improved Ion Engine Light Nuclear Core > --- PROPULSION (2) --- Aluminum Leg Aluminum Leg > --- UTILITY (4) ------ Structural Scanner Targeting Computer Utility Shielding Weapon Shielding > --- WEAPON (3) ------- EM Pulse Gun Small Laser Heavy Assault Rifle > --- INVENTORY (0) ---- (None) Peak State ------------ > --- POWER ------------ Improved Ion Engine Light Nuclear Core > --- PROPULSION ------- Aluminum Leg Aluminum Leg > --- UTILITY ---------- Structural Scanner Targeting Computer Utility Shielding Weapon Shielding > --- WEAPON ----------- EM Pulse Gun Small Laser Heavy Assault Rifle > --- INVENTORY -------- (None) [Rating: 15] Favorites ----------- Power Ion Engine Engine Ion Engine Power Core Light Nuclear Core Propulsion Aluminum Leg Leg Aluminum Leg Utility Weapon Shielding Device Structural Scanner Processor Targeting Computer Protection Weapon Shielding Weapon Small Laser Energy Gun Small Laser Ballistic Gun Assault Rifle Build | -11 -10 -10 -9 ------- Run | Jun Mat Min Mat Slots Evolved 7 | 7 . . . Power 1 | 1 . . . Propulsion 1 | 1 . . . Utility 3 | 3 . . . Weapon 2 | 2 . . . Parts Attached 14 | 11 . 3 . Power 4 | 2 . 2 . Engine 3 | 2 . 1 . Core 1 | . . 1 . Reactor . | . . . . Propulsion 2 | 2 . . . Treads . | . . . . Leg 2 | 2 . . . Wheel . | . . . . Hover . | . . . . Flight . | . . . . Utility 4 | 4 . . . Device 1 | 1 . . . Storage . | . . . . Processor 1 | 1 . . . Hackware . | . . . . Protection 2 | 2 . . . Artifact . | . . . . Weapon 4 | 3 . 1 . Energy Gun 2 | 2 . . . Energy Cannon . | . . . . Ballistic Gun 2 | 1 . 1 . Ballistic Cannon . | . . . . Launcher . | . . . . Special Weapon . | . . . . Impact Weapon . | . . . . Slashing Weapon . | . . . . Piercing Weapon . | . . . . Special Melee Weapon . | . . . . Unidentified Prototypes . | . . . . Parts Lost . | . . . . Power . | . . . . Propulsion . | . . . . Utility . | . . . . Weapon . | . . . . Highest Loss Streak . | . . . . To Critical Strikes . | . . . . Average Slot Usage (%) 99 | . 100 99 100 Engine 17 | . 18 17 9 Leg 18 | . 18 18 18 Device 9 | . 9 9 9 Processor 9 | . 9 9 9 Protection 18 | . 18 18 18 Energy Gun 18 | . 18 18 18 Ballistic Gun 8 | . 9 8 9 Naked Turns . | . . . . Heaviest Build 21 | 16 16 21 21 Greatest Support 20 | 20 20 20 20 Greatest Overweight (x) 2 | 2 . 1 1 Average Overweight (x) . | . . . 1 Largest Inventory Capacity . | . . . . Average Capacity . | . . . . Most Carried . | . . . . Average Carried . | . . . . Final Capacity . | . . . . Final Carried . | . . . . Class Distribution -------------------- 100% | Hacker-Tank Dominant Class ---------------- Hacker-Tank | -10/Materials Hacker-Tank | -10/Mines Hacker-Tank | -9/Materials Resources | -11 -10 -10 -9 ----------- Run | Jun Mat Min Mat Matter Collected 399 | 224 92 83 . Remotely . | . . . . Salvage Created 381 | . 112 269 . Parts 40 | . 15 25 . Haulers Intercepted . | . . . . Recyclers Shooed . | . . . . Parts Field Recycled . | . . . . Retrieved Matter . | . . . . Parts Self-Destructed . | . . . . Prevented . | . . . . Kills | -11 -10 -10 -9 ------- Run | Jun Mat Min Mat Combat Hostiles Destroyed 15 | . 6 9 . Guns 15 | . 6 9 . Classes Destroyed 4 | . 2 2 . Watcher 2 | . 2 . . Swarmer 8 | . 6 2 . Grunt 6 | . . 6 . Sentry 1 | . . 1 . Best Kill Streak 6 | . 6 4 . Combat Bots Only 4 | . 4 4 . Max Kills in Single Turn 2 | . 2 1 . Gunslinging 1 | . 1 . . Exploded . | . . . . Melee . | . . . . Uniques/NPCs Destroyed . | . . . . Combat | -11 -10 -10 -9 -------- Run | Jun Mat Min Mat Damage Taken 268 | . 130 138 . Core 197 | . 91 106 . Absorbed by Shields . | . . . . Redirected to Core 134 | . 69 65 . Redirected to Shielding 15 | . 8 7 . Core Remaining (%) 100 | 100 . 100 . Volleys Fired 31 | . 12 19 . Largest 3 | . 3 3 . Hottest 103 | . 100 103 . Shots Fired 93 | . 36 57 . Gun 93 | . 36 57 . Cannon . | . . . . Launcher . | . . . . Special . | . . . . Kinetic 31 | . 12 19 . Thermal 31 | . 12 19 . Explosive . | . . . . Electromagnetic 31 | . 12 19 . Robot Hit Streak 31 | . 10 31 . Robot Miss Streak 2 | . 2 1 . Penetration Max . | . . . . Secondary Targets 4 | . 3 1 . Max Gunslinging Chain 1 | . 1 1 . Shots Hit Robots 74 | . 24 50 . Core Hits 27 | . 8 19 . Critical Kills . | . . . . Critical Parts Destroyed 1 | . 1 . . Critical Strikes 2 | . 1 1 . Destroy 1 | . 1 . . Corrupt 1 | . . 1 . Melee Attacks . | . . . . Impact . | . . . . Slashing . | . . . . Piercing . | . . . . Sneak Attacks . | . . . . Combat Hostiles . | . . . . Follow-up Attacks . | . . . . Damage Inflicted 954 | . 323 631 . Guns 954 | . 323 631 . Cannons . | . . . . Explosions . | . . . . Melee . | . . . . Ramming . | . . . . Kinetic 289 | . 77 212 . Thermal 294 | . 99 195 . Explosive . | . . . . Electromagnetic 371 | . 147 224 . Impact . | . . . . Slashing . | . . . . Piercing . | . . . . Highest Corruption . | . . . . Average Corruption . | . . . . Corruption Purged . | . . . . Corruption Blocked . | . . . . Overload Shots . | . . . . Overflow Damage . | . . . . Projectiles . | . . . . Explosions . | . . . . Melee . | . . . . Knockbacks . | . . . . Impact . | . . . . Kinetic . | . . . . Secondary . | . . . . Self-Inflicted Damage . | . . . . Shots . | . . . . Rammed . | . . . . Targets Rammed . | . . . . Kicked . | . . . . Crushed . | . . . . Highest Temperature 346 | . 346 324 . Average Temperature 163 | . 158 178 . Received Heat Transfer 120 | . . 120 . Effects 2 | . 2 . . Energy Bleed 2 | . 2 . . Siege Activations . | . . . . Robots Corrupted . | . . . . Combat Hostiles . | . . . . Parts Fried 1 | . . 1 . Impact Corruptions . | . . . . Robots Melted . | . . . . Combat Hostiles . | . . . . Parts Melted . | . . . . Heat Transferred 675 | . 225 450 . Parts Sabotaged . | . . . . Parts Stolen . | . . . . Parts Stripped . | . . . . Power Chain Reactions . | . . . . Missiles Intercepted . | . . . . Alert | -11 -10 -10 -9 ------- Run | Jun Mat Min Mat Peak Influence 180 | . 164 180 35 Initial 45 | . . 45 35 Average 93 | . 84 112 35 Maximum Alert Level . | . . . . Low Security (%) 100 | 100 100 100 100 Level 1 . | . . . . Level 2 . | . . . . Level 3 . | . . . . Level 4 . | . . . . Level 5 . | . . . . High Security . | . . . . Max Security . | . . . . Squads Dispatched . | . . . . Investigation . | . . . . Extermination . | . . . . Reinforcement . | . . . . Assault . | . . . . Garrison . | . . . . Intercept . | . . . . Searches Triggered . | . . . . Construction Impeded . | . . . . Haulers Reinforced . | . . . . Active Scanning Responses . | . . . . Cargo Convoy Interrupts . | . . . . Stealth | -11 -10 -10 -9 --------- Run | Jun Mat Min Mat Distress Signals 1 | . 1 . . Communications Jammed . | . . . . Distress Signals . | . . . . Times Spotted 18 | . 8 10 . Peak Tracking Total 6 | . 6 3 . Tactical Retreats 1 | . . 1 . Traps | -11 -10 -10 -9 ------- Run | Jun Mat Min Mat Traps Triggered . | . . . . Indirectly . | . . . . Trap Hack Attempts . | . . . . Triggered . | . . . . Disarmed . | . . . . Reprogrammed . | . . . . Reused . | . . . . Traps Extracted . | . . . . Installed . | . . . . Triggered . | . . . . Machines | -11 -10 -10 -9 ---------- Run | Jun Mat Min Mat Machines Disabled . | . . . . Max in Single Turn . | . . . . Machines Repaired . | . . . . Machines Sabotaged . | . . . . Overloaded Fab Kills . | . . . . Hacking | -11 -10 -10 -9 --------- Run | Jun Mat Min Mat Machines Accessed 1 | . 1 . . Terminals 1 | . 1 . . Fabricators . | . . . . Repair Stations . | . . . . Recycling Units . | . . . . Scanalyzers . | . . . . Garrison Access . | . . . . Total Hacks 2 | . 2 . . Successful . | . . . . Failed 2 | . 2 . . Catastrophic . | . . . . Database Lockouts . | . . . . Manual 2 | . 2 . . Terminals 2 | . 2 . . Fabricators . | . . . . Repair Stations . | . . . . Recycling Units . | . . . . Scanalyzers . | . . . . Garrison Access . | . . . . Terminal Hacks . | . . . . Fabricator Hacks . | . . . . Repair Station Hacks . | . . . . Recycling Unit Hacks . | . . . . Scanalyzer . | . . . . Garrison Access Hacks . | . . . . Unauthorized Hacks . | . . . . Terminals . | . . . . Fabricators . | . . . . Repair Stations . | . . . . Recycling Units . | . . . . Scanalyzers . | . . . . Garrison Access . | . . . . Data Cores Recovered . | . . . . Used . | . . . . Hacking Detections 1 | . 1 . . Full Trace Events . | . . . . Feedback Events . | . . . . Feedback Blocked . | . . . . Robot Schematics Acquired . | . . . . Robots Built . | . . . . Authchips . | . . . . Time . | . . . . Total Robot Build Rating . | . . . . Part Schematics Acquired . | . . . . Parts Built . | . . . . Authchips . | . . . . Time . | . . . . Total Part Build Rating . | . . . . Parts Repaired . | . . . . Time . | . . . . Parts Recycled . | . . . . Recycled Matter . | . . . . Retrieved Matter . | . . . . Retrieved Components . | . . . . Parts Scanalyzed . | . . . . Part Schematics Acquired . | . . . . Parts Damaged . | . . . . Bothacking | -11 -10 -10 -9 ------------ Run | Jun Mat Min Mat Used RIF Installer . | . . . . Robots Hacked . | . . . . Non-combat . | . . . . Combat . | . . . . Robot Hacks Applied . | . . . . Relay Couplers Released . | . . . . Fabnet Peak Effective % . | . . . . Robots Rewired . | . . . . Allies Hacked . | . . . . Hacks Repelled . | . . . . Allies | -11 -10 -10 -9 -------- Run | Jun Mat Min Mat Total Allies . | . . . . Largest Group . | . . . . Highest-Rated Group . | . . . . Highest-Rated Ally . | . . . . Total Orders . | . . . . Ally Attacks . | . . . . Total Damage . | . . . . Kills . | . . . . Allies Corrupted . | . . . . Allies Melted . | . . . . Intel | -11 -10 -10 -9 ------- Run | Jun Mat Min Mat Robot Analysis Total . | . . . . Derelict Logs Recovered 1 | . . 1 . Drone Launches . | . . . . Drone Recoveries . | . . . . Exploration | -11 -10 -10 -9 ------------- Run | Jun Mat Min Mat Turns Passed 780 | 88 160 528 4 Spaces Moved 458 | 63 96 297 2 Core 8 | 8 . . . Treads . | . . . . Legs 450 | 55 96 297 2 Wheels . | . . . . Hover . | . . . . Flight . | . . . . Fastest Speed 50 | 50 120 120 190 Average Speed 137 | 114 120 147 190 Slowest Speed 190 | 150 120 190 190 Overloaded Moves . | . . . . Propulsion Burnouts . | . . . . Robots Hopped . | . . . . Cave-ins Triggered . | . . . . Exploration Rate (%) 28 | 5 27 78 3 Regions Visited 3 Branch Regions 1 Pre-discovered Areas 1 | . . 1 . Known Exits Taken 3 | 1 1 1 . Unknown Exits Taken . | . . . . Scrap Searched 1 | . . 1 . Spaces Dug . | . . . . Terrain Destroyed . | . . . . Melee . | . . . . Projectile . | . . . . AOE . | . . . . Terrain Rammed . | . . . . Walls Destroyed . | . . . . Machines Disabled . | . . . . Actions | -11 -10 -10 -9 --------- Run | Jun Mat Min Mat Total 534 | 73 114 345 2 Wait 13 | . 1 12 . Move 455 | 62 95 296 2 Hop . | . . . . Pick Up . | . . . . Fast Attach 14 | 11 . 3 . Attach . | . . . . Detach . | . . . . Swap . | . . . . Drop 3 | . . 3 . Fire 31 | . 12 19 . Melee . | . . . . Ram . | . . . . Kick . | . . . . Crush . | . . . . Escape Stasis . | . . . . Rewire . | . . . . Trap . | . . . . Miscellaneous 18 | . 6 12 . Route ------- -11/Junkyard -10/Materials -10/Mines -9/Materials History --------- Turn | Location | Event 1 | -11/Junkyard | Upgraded with Power slot (x1) 1 | -11/Junkyard | Upgraded with Propulsion slot (x1) 1 | -11/Junkyard | Upgraded with Utility slot (x3) 1 | -11/Junkyard | Upgraded with Weapon slot (x2) 3 | -11/Junkyard | Identified exit to Materials 3 | -11/Junkyard | Discovered exit to Materials (range 16) 89 | -11/Junkyard | Entered Materials 230 | -10/Materials | Identified exit to Mines 230 | -10/Materials | Discovered exit to Mines (range 16) 249 | -10/Materials | Entered Mines 318 | -10/Mines | Build established: Hacker-Tank 388 | -10/Mines | Reached level 2 479 | -10/Mines | Joined a pair of Derelicts in attacking an 0b10 outpost 708 | -10/Mines | Identified exit to Materials 708 | -10/Mines | Discovered exit to Materials (range 10) 777 | -10/Mines | Entered Materials 779 | -9/Materials | Reached level 3 779 | -9/Materials | Reached level 4 781 | -9/Materials | Self-destructed Last Messages --------------- 00562_ Acquired 20 matter. 00565_ K-01 Serf collects debris. 00655_ S-10 Pest destroyed. 00655_ Switching to secondary target: S-10 Pest. 00658_ S-10 Pest destroyed. 00671_ Used Protomatter to restore core integrity (+8) 00708_ EXIT=FOUND: MATERIALS 00713_ Laser Drill disabled. 00724_ G-34 Mercenary misfires. 00730_ Heat Sink fried. 00730_ G-34 Mercenary destroyed. 00735_ Used Protomatter to restore core integrity (+11) 00736_ G-47 Trooper destroyed. 00740_ Used Protomatter to restore part integrity (+28) 00756_ Dropped Ion Engine. 00756_ Acquired Lgt. Nuclear Core. LOCATION=MATERIALS GOAL=ESCAPE 00779_ Reached level 3. 00779_ Reached level 4. Map ----- +----------------------------------------------------+ | | | | | | | | | | | | | | | | | | | | | | | | | | | | | | | | | ????????????????#############?????????????????? | | ????????????????## ##?????????????????? | | ????????????????## """"" ##?????????????????? | | ????????????????## ""T"" ##?????????????????? | | ????????????????## ##?????????????????? | | ????????????????## ##?????????????????? | | ????????????????## ##?????????????????? | | ????????????????## ##?????????????????? | | ?????????????????# #######????????????? | | ?????????????????#####@###########????????????? | | ?????????????????## ?????????? | | ?????????????????## ?????????? | | ?????????????????## """ ""???????????? | | ?????????????????###### """???????????????? | | ?????????????????###### """???????????????? | | ??????????????????????? ??????????????? | | ??????????????????????? ?????????????? | | ??????????????????????? ????????????? | | ??????????????????????? ????????????? | | ??????????????????????? ????????????? | | ??????????????????????? ????????????? | | ???????????????????????? ####### ????????????? | | ???????????????????????? ####### ????????????? | | ???????????????????????? ##??????????????????? | | ???????????????????????? ##??????????????????? | | ??????????????????????????????????????????????? | | ??????????????????????????????????????????????? | | ??????????????????????????????????????????????? | | ??????????????????????????????????????????????? | | ??????????????????????????????????????????????? | | ??????????????????????????????????????????????? | | ??????????????????????????????????????????????? | | ??????????????????????????????????????????????? | | ??????????????????????????????????????????????? | +----------------------------------------------------+ Best States ------------- Heat Dissipation 85 Energy Generation 21 Energy Capacity 415 Matter Stores 300 Matter Capacity 300 Sight Range 16 Terrain Scan Density 10 Resistance: KI 40 Resistance: TH 40 Resistance: EX 50 Resistance: EM 35 Resistance: I 35 Resistance: S 35 Resistance: P 35 Utility Shielding 33 Weapon Shielding 33 Evasion (%) 55 Targeting Accuracy 5 Offensive Hacking 20 Item Schematics ----------------- None Robot Schematics ------------------ None Fabricated ------------ Nothing Alien Tech Used ----------------- None Achievements -------------- None Challenges ------------ None RPGLIKE | -11 -10 -10 -9 --------- Run | Jun Mat Min Mat Levels Raised 3 | . . 1 2 XP Earned 10953 | 6000 820 1600 2533 XP Spent 7400 | 6000 . 1400 . Upgrades 23 | 13 . 10 . Power Slot 1 | 1 . . . Propulsion Slot 1 | 1 . . . Utility Slot 3 | 3 . . . Weapon Slot 2 | 2 . . . Heat Dissipation 10 | . . 10 . Ranged Accuracy 1 | 1 . . . KI Resistance % 1 | 1 . . . TH Resistance % 1 | 1 . . . EX Resistance % 3 | 3 . . . Protomatter Created 229 | . 34 195 . Integrity Restored 290 | . 99 191 . Core 197 | . 91 106 . Parts 93 | . 8 85 . Protomatter Decayed 101 | . . 101 . Game ------ Seed MetafiberBackupScrap Manual? 0 Play Time 00:06:47 Cumulative 133.3 hours Start 2023.03.19 @ 10:39:59 End 2023.03.19 @ 10:49:51 Sessions 1 Manual Loads 0 Difficulty Explorer Special Mode Winter2019/RPGLIKE Game No. 58 Rogue 13 Adventurer 0 Explorer 45 Win Type - Total 5 Types 1/1/0/2/0/0/0/0/1 Lore% 54 Gallery% 55 Achievement% 59 Wizard Run 0 Options --------- ASCII 0 Keyboard 0 Movement Mouse Keybinds 0 Fullscreen 2 Font 18/SmallcapsGlow Map View 76x50 Tactical HUD 1 Map Filters NONE Filters NONE Steam 1 RUN: 5c9bfb93-43b2-4508-a809-1f9211328ead